bitfinex/quotes_ETHUSD_20230116
["timestamp","ask_amount","ask_price","bid_price","bid_amount"]
[1673867278343,1.44201465,1546.2,1546.1,22.70239491]
[1673867279561,0.96415115,1546.2,1546.1,24.20339491]
[1673867280867,0.96415115,1546.3,1546.1,25.80854958]
[1673867281118,0.96415115,1546.3,1546.2,24.98323496]
[1673867283701,2.4061658,1546.4,1546.2,24.98323496]
[1673867283915,2.4061658,1546.4,1546.3,1.49487412]
[1673867284183,2.4061658,1546.4,1546.3,20.89602412]
[1673867284490,0.96415115,1546.4,1546.3,20.89602412]
[1673867284645,0.96415115,1546.4,1546.3,24.29085803]
[1673867285114,2.4061658,1546.5,1546.3,25.79485803]
[1673867285387,2.4061658,1546.5,1546.4,20.90089]
[1673867285597,0.96415115,1546.5,1546.4,20.90089]
[1673867286586,2.4061658,1546.5,1546.4,20.90089]
[1673867286836,2.4061658,1546.5,1546.4,23.97716739]
[1673867287047,0.96415115,1546.5,1546.4,23.97716739]
[1673867287211,2.4061658,1546.5,1546.4,23.97716739]
[1673867287423,2.4061658,1546.6,1546.4,25.47016739]
[1673867287639,2.40521147,1546.6,1546.5,22.39763]
[1673867287993,2.40521147,1546.6,1546.5,25.59168374]
[1673867287994,1.44201465,1546.6,1546.5,25.59168374]
[1673867288302,2.40520913,1546.6,1546.5,25.59168374]
[1673867288474,1.44201465,1546.6,1546.5,25.59168374]
[1673867289358,1.44201465,1546.6,1546.5,4.68905374]
[1673867289359,3.36470085,1546.6,1546.5,4.68905374]
[1673867289570,3.36470085,1546.6,1546.5,1.495]
[1673867289885,1.44201465,1546.6,1546.5,1.495]
[1673867290055,1.44201465,1546.6,1546.5,7.96121]
[1673867290265,3.36470085,1546.6,1546.5,7.96121]
[1673867291877,1.44201465,1546.6,1546.5,7.96121]
[1673867292627,3.36470085,1546.6,1546.5,7.96121]
[1673867292790,1.44201465,1546.6,1546.5,7.96121]
[1673867293186,2.40490236,1546.6,1546.5,7.96121]
[1673867293444,1.44201465,1546.6,1546.5,7.96121]
[1673867293655,1.44201465,1546.6,1546.5,14.42742]
[1673867294033,1.43858199,1546.6,1546.5,14.42742]
[1673867296042,1.43858199,1546.6,1546.5,12.93242]
[1673867296720,3.36126819,1546.6,1546.5,6.46621]
[1673867296929,1.43858199,1546.6,1546.5,6.46621]
[1673867297433,1.9226862,1546.6,1546.4,7.97036]
[1673867297820,4.32604394,1546.6,1546.4,1.504]
[1673867298032,1.9226862,1546.5,1546.3,20.20852]
[1673867298245,10.79225394,1546.5,1546.3,12.2378]
[1673867301950,1.9226862,1546.4,1546.3,12.2378]
[1673867302596,1.9226862,1546.4,1546.2,7.96325]
[1673867302816,0.96296582,1546.3,1546.2,7.96325]
[1673867302974,2.40748537,1546.3,1546.2,7.96325]
[1673867303191,1.44451955,1546.3,1546.2,7.96325]
[1673867304911,0.96309149,1546.3,1546.2,12.207718]
[1673867305082,3.02291257,1546.4,1546.2,18.675178]
[1673867305657,3.02291257,1546.4,1546.2,18.682178]
[1673867306012,3.02291257,1546.4,1546.2,25.149638]
[1673867306223,1.57839302,1546.4,1546.2,25.149638]
[1673867307118,1.57839302,1546.4,1546.2,20.90517]
[1673867309606,3.02291257,1546.4,1546.2,20.90517]
[1673867312483,0.96309149,1546.3,1546.2,20.90517]
[1673867315368,2.40761104,1546.3,1546.2,20.90517]
[1673867315788,2.40761104,1546.3,1546.2,20.90219391]
[1673867316423,1.44451955,1546.3,1546.2,20.90219391]
[1673867316634,2.40819624,1546.3,1546.2,20.90219391]
[1673867317370,0.96367669,1546.3,1546.2,20.90219391]
[1673867317831,0.96367669,1546.3,1546.2,25.1470233]
[1673867318895,0.96367669,1546.3,1546.2,20.90219391]
[1673867321994,2.40819624,1546.3,1546.2,20.90219391]
[1673867325392,3.36720575,1546.3,1546.2,1.503]
[1673867325902,1.44451955,1546.3,1546.2,1.503]
[1673867326258,3.36720575,1546.3,1546.2,1.503]
[1673867327508,1.9226862,1546.3,1546.2,1.503]
[1673867328056,2.41682075,1546.3,1546.2,1.503]
[1673867328352,4.82017849,1546.3,1546.2,1.503]
[1673867328963,2.41682075,1546.3,1546.2,1.503]
[1673867329362,1.9226862,1546.3,1546.2,1.503]
[1673867329805,4.32604394,1546.3,1546.2,1.503]
[1673867330402,2.40335774,1546.3,1546.2,1.503]
[1673867331564,4.33138446,1546.3,1546.2,1.503]
[1673867332220,1.92802672,1546.3,1546.2,1.503]
[1673867333152,1.92802672,1546.3,1546.1,19.40308]
[1673867333366,2.41011795,1546.2,1546.1,12.93538]
[1673867333620,1.44607077,1546.2,1546.1,12.93538]
[1673867334319,3.37409749,1546.2,1546.1,12.93538]
[1673867334520,1.44607077,1546.2,1546.1,12.93538]
[1673867335178,1.44607077,1546.2,1546.1,19.40326]
[1673867335394,1.44607077,1546.2,1546.1,22.39911402]
[1673867336030,1.44607077,1546.2,1546.1,19.40326]
[1673867336709,3.37409749,1546.2,1546.1,19.40326]
[1673867339142,3.37409749,1546.2,1546.1,19.40022329]
[1673867339445,3.37409749,1546.2,1546.1,19.15022329]
[1673867340403,1.44607077,1546.2,1546.1,19.15022329]
[1673867341187,2.41065163,1546.2,1546.1,19.15022329]
[1673867341504,2.41065163,1546.2,1546.1,22.12077364]
[1673867341505,0.96458086,1546.2,1546.1,22.12077364]
[1673867342079,2.41065163,1546.2,1546.1,22.12077364]
[1673867342290,2.41065163,1546.2,1546.1,23.62377364]
[1673867342846,2.41065163,1546.2,1546.1,23.37377364]
[1673867343030,2.41065845,1546.2,1546.1,23.37377364]
[1673867344240,1.44607077,1546.2,1546.1,23.37377364]
[1673867344621,1.44607077,1546.2,1546.1,20.40322329]
[1673867345023,3.37409749,1546.2,1546.1,20.40322329]
[1673867345706,3.37409749,1546.2,1546.1,18.90022329]
[1673867345898,1.92802672,1546.2,1546.1,18.90022329]
[1673867348284,4.33138446,1546.2,1546.1,18.90022329]
[1673867349119,1.92802672,1546.2,1546.1,18.90022329]
[1673867350328,1.92802672,1546.2,1546.1,12.43234329]
[1673867350540,1.92802672,1546.2,1546.0,19.49438019]
[1673867350541,2.83649619,1546.2,1546.0,19.49438019]
[1673867350773,3.37599527,1546.1,1546.0,13.02630019]
[1673867351076,3.37599527,1546.1,1546.0,19.49460019]
[1673867351378,1.92914015,1546.1,1546.0,19.49460019]
[1673867351803,1.92914015,1546.1,1546.0,13.02630019]
[1673867354078,1.92547818,1546.1,1546.0,13.02630019]
[1673867354633,3.37168868,1546.1,1546.0,12.9361]
[1673867355065,1.4462105,1546.1,1546.0,12.9361]
[1673867355421,1.4462105,1546.1,1546.0,19.4044]
[1673867356103,2.78831456,1546.1,1546.0,6.46805]
[1673867356265,9.84123281,1546.2,1545.9,0.14713647]
[1673867356480,2.40942451,1546.0,1545.9,0.14713647]
[1673867356688,2.40942451,1546.0,1545.9,0.09713647]
[1673867356954,2.65036696,1546.0,1545.9,0.09713647]
[1673867358108,1.38794245,1546.0,1545.9,0.09713647]
[1673867358346,1.147,1546.0,1545.9,0.09713647]
[1673867360560,3.55642451,1546.0,1545.9,0.09713647]
[1673867360714,1.147,1546.0,1545.9,0.09713647]
[1673867362071,4.51702519,1546.0,1545.9,0.09713647]
[1673867362397,3.07273014,1546.0,1545.9,0.09713647]
[1673867362873,1.92573014,1546.0,1545.9,6.56585647]
[1673867363046,1.44434262,1546.0,1545.9,6.56585647]
[1673867363669,3.37007276,1546.0,1545.9,6.56585647]
[1673867365237,3.37007276,1546.0,1545.9,19.50329647]
[1673867365449,2.40722426,1546.0,1545.9,19.50329647]
[1673867366671,0.96288164,1546.0,1545.9,22.11552239]
[1673867366823,2.40722426,1546.0,1545.9,22.11552239]
[1673867367182,2.40722426,1546.0,1545.9,23.61852239]
[1673867367341,0.96288164,1546.1,1545.9,23.61852239]
[1673867369648,2.40722426,1546.1,1545.9,23.61852239]
[1673867369859,1.44434262,1546.1,1546.0,7.60761321]
[1673867370117,1.44434262,1546.1,1546.0,20.54421321]
[1673867373376,1.44434262,1546.1,1546.0,19.4049]
[1673867375112,3.37007276,1546.1,1546.0,19.4049]
[1673867375363,1.92573014,1546.1,1546.0,19.4049]
[1673867376003,3.37109532,1546.1,1546.0,19.4049]
[1673867376900,4.81690308,1546.1,1546.0,19.4049]
[1673867377162,3.37109532,1546.1,1546.0,19.4049]
[1673867378903,3.37109532,1546.1,1545.9,13.03694285]
[1673867379065,3.37605567,1546.0,1545.9,6.56822285]
[1673867379283,3.37605567,1546.0,1545.9,13.03677285]
[1673867379584,1.93007976,1546.0,1545.9,13.03677285]
[1673867380018,1.93007976,1546.0,1545.9,6.56822285]
[1673867382429,3.37613122,1546.0,1545.9,6.56822285]
[1673867382645,3.37610072,1546.0,1545.9,6.56822285]
[1673867382856,4.09921389,1546.0,1545.9,0.09713647]
[1673867383087,7.19350092,1546.0,1545.9,0.09713647]
[1673867383324,7.19350092,1546.0,1545.9,0.06774623]
[1673867383325,10.4662877,1546.0,1545.9,0.06774623]
[1673867383482,2.5,1545.9,1545.8,0.15008278]
[1673867383837,21.09101997,1545.9,1545.8,0.15008278]
[1673867384058,25.43176504,1545.9,1545.8,0.15008278]
[1673867384436,25.43160831,1545.9,1545.7,0.15318034]
[1673867384641,13.11966324,1545.8,1545.7,0.15318034]
[1673867384856,10.22762678,1545.8,1545.7,0.15318034]
[1673867385471,12.63616015,1545.8,1545.7,0.15318034]
[1673867385838,15.42022632,1545.8,1545.7,0.15318034]
[1673867386207,15.4204349,1545.8,1545.7,0.15318034]
[1673867389306,21.8895749,1545.8,1545.7,0.15318034]
[1673867389479,23.3925749,1545.8,1545.7,0.15318034]
[1673867390783,33.34500941,1545.8,1545.7,0.15318034]
[1673867390991,41.49134859,1545.8,1545.7,0.15318034]
[1673867391375,55.49134859,1545.8,1545.7,0.06356149]
[1673867393534,1.5,1545.4,1545.3,0.02305578]
[1673867393743,27.54223147,1545.4,1545.3,0.02305578]
[1673867393902,28.18855538,1545.4,1545.2,0.13273845]
[1673867394121,7.05304689,1545.3,1545.2,0.13273845]
[1673867394477,13.52427689,1545.3,1545.2,0.13273845]
[1673867394642,10.70542135,1545.3,1545.2,0.13273845]
[1673867396052,9.74401678,1545.3,1545.2,0.13273845]
[1673867396651,0.0453001,1545.3,1545.2,0.13273845]
[1673867397894,1.1923001,1545.3,1545.2,0.13273845]
[1673867398581,0.0453001,1545.3,1545.2,0.13273845]
[1673867399407,0.0453001,1545.3,1545.1,0.11242112]
[1673867399891,16.26074688,1545.3,1545.1,0.11242112]
[1673867400208,8.09772469,1545.2,1545.1,0.11242112]
[1673867400383,6.47165,1545.2,1545.1,0.11242112]
[1673867402150,16.74667688,1545.3,1545.1,0.11242112]
[1673867403571,3.27278678,1545.2,1545.1,0.11242112]
[1673867403884,9.74443678,1545.2,1545.1,0.11242112]
[1673867405125,10.23023678,1545.2,1545.1,0.11242112]
[1673867405331,15.66025511,1545.2,1545.1,0.11242112]
[1673867406141,20.66025511,1545.2,1545.1,0.11242112]
[1673867406579,33.60355511,1545.2,1545.1,0.11242112]
[1673867408206,11.75858678,1545.2,1545.1,0.11242112]
[1673867408385,0.5311001,1545.3,1545.1,0.11242112]
[1673867408712,6.80388688,1545.3,1545.1,0.11242112]
[1673867409615,6.80388688,1545.3,1545.1,6.58445112]
[1673867410239,9.65960102,1545.3,1545.1,0.11242112]
[1673867410801,9.65960102,1545.3,1545.1,6.58448112]
[1673867410976,3.80388688,1545.3,1545.1,6.58448112]
[1673867411974,3.80388688,1545.3,1545.1,6.58447112]
[1673867412399,3.80388688,1545.3,1545.1,0.11242112]
[1673867414599,3.80388688,1545.3,1545.1,0.10117901]
[1673867414600,4.77178678,1545.2,1545.1,0.10117901]
[1673867414913,7.8627111,1545.2,1545.1,0.10117901]
[1673867415075,8.50905028,1545.2,1545.1,0.10117901]
[1673867415293,24.93305257,1545.2,1545.1,0.10117901]
[1673867415441,25.5393393,1545.2,1545.1,0.06621409]
[1673867415659,26.50409093,1545.2,1545.1,0.06621409]
[1673867415871,32.0159893,1545.2,1545.1,0.06621409]
[1673867416081,32.0159893,1545.2,1545.0,0.59223]
[1673867416304,13.07234055,1545.1,1545.0,0.59223]
[1673867416554,19.54441055,1545.1,1545.0,0.59223]
[1673867416869,24.54441055,1545.1,1545.0,0.59223]
[1673867417059,26.10702514,1545.1,1545.0,0.59223]
[1673867417393,24.66491828,1545.1,1545.0,0.59223]
[1673867418494,26.10702514,1545.1,1545.0,0.59223]
[1673867418754,32.57909514,1545.1,1545.0,0.59223]
[1673867418970,5.4859,1545.1,1545.0,0.59223]
[1673867419145,5.0,1545.1,1545.0,0.59223]
[1673867419354,0.95971566,1545.2,1545.0,7.06472]
[1673867419547,1.60789966,1545.3,1545.1,1.507]
[1673867419548,1.12550846,1545.3,1545.1,1.507]
[1673867419759,5.0,1545.2,1545.1,1.507]
[1673867420023,1.00501576,1545.3,1545.1,9.086102]
[1673867420407,0.0453001,1545.3,1545.1,9.085102]
[1673867421042,0.0453001,1545.3,1545.1,15.557172]
[1673867422181,0.0453001,1545.3,1545.1,22.029242]
[1673867423017,1.00501576,1545.3,1545.1,22.029242]
[1673867425695,0.95971566,1545.2,1545.1,22.029242]
[1673867425886,2.44712262,1545.3,1545.1,22.029242]
[1673867426098,2.44712262,1545.3,1545.1,20.523242]
[1673867426654,0.95971566,1545.2,1545.1,20.523242]
[1673867428187,0.95971566,1545.2,1545.1,22.020242]
[1673867431969,2.40182252,1545.2,1545.1,22.020242]
[1673867432403,2.40182252,1545.2,1545.1,20.91307]
[1673867432945,2.21062803,1545.2,1545.1,20.91307]
[1673867433735,2.21062803,1545.2,1545.1,19.41607]
[1673867434490,3.17512062,1545.2,1545.1,19.41607]
[1673867435270,3.17510661,1545.2,1545.1,19.41607]
[1673867435427,1.73303399,1545.2,1545.1,23.437464]
[1673867436100,1.73303399,1545.2,1545.1,24.940464]
[1673867436645,3.17514085,1545.2,1545.1,24.940464]
[1673867436793,3.17514085,1545.2,1545.1,20.91907]
[1673867439154,1.73303399,1545.2,1545.1,20.91907]
[1673867439375,3.17514085,1545.2,1545.1,20.91907]
[1673867440946,1.73303399,1545.2,1545.1,21.14907]
[1673867444889,0.76852117,1545.2,1545.1,21.14907]
[1673867446588,0.76852117,1545.2,1545.1,25.343764]
[1673867446789,0.76852117,1545.2,1545.1,26.842764]
[1673867446996,0.0453001,1545.3,1545.2,2.26799883]
[1673867447225,0.0453001,1545.3,1545.2,24.92494883]
[1673867447978,0.76095532,1545.3,1545.2,24.92494883]
[1673867448200,0.76095532,1545.3,1545.2,29.50718179]
[1673867451749,0.76095532,1545.3,1545.2,32.77996857]
[1673867452152,5.32e-06,1545.3,1545.2,32.77996857]
[1673867452939,5.32e-06,1545.3,1545.2,31.89449637]
[1673867457234,5.32e-06,1545.3,1545.2,40.28745113]
[1673867459855,5.32e-06,1545.3,1545.2,42.66131244]
[1673867460324,5.32e-06,1545.3,1545.2,50.91661244]
[1673867462693,5.32e-06,1545.3,1545.2,54.88443141]
[1673867462906,5.32e-06,1545.3,1545.2,53.91661244]
[1673867464268,0.86674077,1545.7,1545.3,9.287]
[1673867464465,3.8505724,1545.9,1545.6,3.009]
[1673867464676,1.92770686,1545.9,1545.8,19.40742]
[1673867464890,1.92770686,1545.9,1545.8,26.10656]
[1673867465170,0.4856,1545.9,1545.8,26.10656]
[1673867465517,0.4856,1545.9,1545.8,30.373816]
[1673867466145,0.05065608,1546.0,1545.8,30.373816]
[1673867466359,0.05065608,1546.0,1545.9,0.23]
[1673867466568,0.05065608,1546.0,1545.9,19.63616]
[1673867467466,1.49276294,1546.0,1545.9,19.63616]
[1673867468203,0.05065608,1546.0,1545.9,19.63616]
[1673867469671,0.05065608,1546.0,1545.9,20.53157415]
[1673867472155,0.0485442,1546.0,1545.9,20.53157415]
[1673867474359,1.01098085,1546.0,1545.9,19.13616]
[1673867474591,1.01098085,1546.0,1545.9,19.36616]
[1673867474782,0.0485442,1546.0,1545.9,19.36616]
[1673867475180,1.01098085,1546.0,1545.9,19.36616]
[1673867475514,0.0485442,1546.0,1545.9,19.36616]
[1673867478438,0.0485442,1546.0,1545.9,20.61734141]
[1673867480805,0.0485442,1546.0,1545.9,22.11834141]
[1673867485224,1.01098085,1546.0,1545.9,22.11834141]
[1673867486694,0.0485442,1546.0,1545.9,22.11834141]
[1673867487374,1.01098085,1546.0,1545.9,22.11834141]
[1673867487634,0.0485442,1546.0,1545.9,22.11834141]
[1673867488321,1.01098085,1546.0,1545.9,22.11834141]
[1673867488740,0.0485442,1546.0,1545.9,22.11834141]
[1673867489206,1.01098085,1546.0,1545.9,22.11834141]
[1673867489734,1.01098085,1546.0,1545.9,20.86716]
[1673867489952,1.01098085,1546.0,1545.9,19.36616]
[1673867490141,2.45435396,1546.0,1545.9,19.36616]
[1673867490451,1.49065106,1546.0,1545.9,19.36616]
[1673867490930,3.4135166,1546.0,1545.9,19.13616]
[1673867491146,3.75897288,1546.0,1545.9,19.13616]
[1673867491356,2.31686602,1546.0,1545.9,17.22254401]
[1673867492559,4.72044794,1546.0,1545.9,10.75382401]
[1673867492771,2.7975824,1546.0,1545.9,4.28510401]
[1673867493249,2.7975824,1546.0,1545.9,10.75382401]
[1673867494526,0.39400048,1546.0,1545.9,10.75382401]
[1673867495344,3.27829879,1546.0,1545.9,10.75382401]
[1673867495713,3.27829879,1546.0,1545.9,7.41930454]
[1673867496177,2.8059816,1546.0,1545.9,7.41930454]
[1673867496342,2.8059816,1546.0,1545.9,13.88802454]
[1673867496555,2.8059816,1546.0,1545.9,7.41930454]
[1673867496764,0.39400048,1546.0,1545.9,7.41930454]
[1673867497218,3.27829879,1546.0,1545.9,7.41930454]
[1673867497637,3.76389879,1546.0,1545.9,7.41930454]
[1673867499506,3.76389879,1546.0,1545.9,13.88802454]
[1673867499762,0.0485442,1546.0,1545.9,13.88802454]
[1673867500343,2.93284251,1546.0,1545.9,7.41930454]
[1673867500969,2.93284251,1546.0,1545.9,13.88802454]
[1673867501322,2.93284251,1546.0,1545.9,7.41930454]
[1673867502172,2.93284251,1546.0,1545.9,13.88802454]
[1673867503822,0.0485442,1546.0,1545.9,13.88802454]
[1673867504031,2.46130476,1546.0,1545.9,13.88802454]
[1673867513639,0.0485442,1546.0,1545.9,13.88802454]
[1673867513811,0.0485442,1546.0,1545.9,15.3322138]
[1673867513812,2.45944387,1546.0,1545.9,15.3322138]
[1673867514024,1.49522893,1546.0,1545.9,15.33463585]
[1673867514239,1.49522893,1546.0,1545.9,15.56463585]
[1673867514453,1.49522893,1546.0,1545.9,17.06863585]
[1673867516586,2.45950716,1546.0,1545.9,17.06863585]
[1673867516953,1.49522893,1546.0,1545.9,17.06863585]
[1673867518839,1.49522893,1546.0,1545.9,16.83863585]
[1673867519051,3.42401764,1546.0,1545.9,15.39444659]
[1673867519634,3.42401764,1546.0,1545.9,15.38444659]
[1673867520218,3.42401764,1546.0,1545.9,15.61444659]
[1673867520694,1.49522893,1546.0,1545.9,15.61444659]
[1673867520851,2.45947312,1546.0,1545.9,15.61444659]
[1673867521086,2.45947312,1546.0,1545.9,18.07276525]
[1673867522525,1.01278839,1546.0,1545.9,18.07276525]
[1673867522899,2.45947312,1546.0,1545.9,18.07276525]
[1673867523994,1.01278839,1546.0,1545.9,18.07276525]
[1673867524260,2.45947312,1546.0,1545.9,18.07276525]
[1673867525201,1.49522893,1546.0,1545.9,18.07276525]
[1673867526144,1.49522893,1546.0,1545.9,18.0703432]
[1673867526357,3.42401764,1546.0,1545.9,15.61202454]
[1673867527040,3.42401764,1546.0,1545.9,14.10802454]
[1673867528196,1.97733291,1546.0,1545.9,14.10802454]
[1673867528830,3.42372898,1546.0,1545.9,14.10802454]
[1673867530307,1.97733291,1546.0,1545.9,14.10802454]
[1673867531294,3.42374455,1546.0,1545.9,14.10802454]
[1673867531718,1.97733291,1546.0,1545.9,14.10802454]
[1673867531940,2.45957729,1546.0,1545.9,14.10802454]
[1673867532243,2.45957729,1546.0,1545.9,16.31520099]
[1673867532407,2.45957729,1546.0,1545.9,14.10802454]
[1673867532619,1.49515884,1546.0,1545.9,14.10802454]
[1673867534750,2.45985836,1546.0,1545.9,14.10802454]
[1673867534939,1.01324372,1546.0,1545.9,15.59902454]
[1673867535365,1.01324372,1546.0,1545.9,17.80580099]
[1673867536605,1.01324372,1546.0,1545.9,21.07858777]
[1673867536874,0.0485442,1546.0,1545.9,21.07858777]
[1673867537396,1.01324372,1546.0,1545.9,21.07858777]
[1673867537583,0.0485442,1546.0,1545.9,21.07858777]
[1673867538237,1.01324372,1546.0,1545.9,21.07858777]
[1673867539091,0.0485442,1546.0,1545.9,21.07858777]
[1673867539237,0.00604606,1546.0,1545.9,23.57858777]
[1673867539631,4.606e-05,1546.0,1545.9,23.57858777]
[1673867541489,0.96474558,1546.0,1545.9,23.57858777]
[1673867541665,4.606e-05,1546.0,1545.9,23.57858777]
[1673867542128,0.96474558,1546.0,1545.9,23.57858777]
[1673867542448,4.62e-05,1546.1,1546.0,28.6919]
[1673867542770,4.62e-05,1546.1,1546.0,38.47362356]
[1673867547027,4.62e-05,1546.1,1546.0,39.97662356]
[1673867549233,4.62e-05,1546.1,1546.0,33.18962356]
[1673867551120,4.62e-05,1546.1,1546.0,31.68862356]
[1673867551952,4.62e-05,1546.1,1546.0,28.41583678]
[1673867552163,0.96476781,1546.1,1546.0,28.41583678]
[1673867553017,4.62e-05,1546.1,1546.0,28.41583678]
[1673867553901,0.71774365,1546.1,1546.0,28.41583678]
[1673867554048,0.71774365,1546.1,1546.0,31.68862356]
[1673867556889,3.65e-06,1546.1,1546.0,38.47562356]
[1673867557104,2.41133625,1546.3,1546.0,42.97962356]
[1673867557336,2.41133625,1546.3,1546.2,3.998]
[1673867557675,2.41133625,1546.3,1546.2,33.37062678]
[1673867558000,1.44661464,1546.3,1546.2,33.37062678]
[1673867559124,2.4114035,1546.3,1546.2,33.37062678]
[1673867560253,0.96478886,1546.3,1546.2,33.37062678]
[1673867560463,0.96478886,1546.3,1546.2,37.81967501]
[1673867561570,0.96478886,1546.3,1546.2,37.82567501]
[1673867562673,0.96478886,1546.3,1546.2,34.54939891]
[1673867562922,1.44661464,1546.3,1546.2,27.37384]
[1673867563719,0.96483639,1546.3,1546.2,30.64662678]
[1673867564353,0.96483639,1546.3,1546.2,30.87662678]
[1673867566824,5.78630302,1546.4,1546.2,19.63238]
[1673867567016,2.02524494,1546.3,1546.2,19.40238]
[1673867567226,1.44661464,1546.3,1546.2,19.40238]
[1673867567459,2.41142721,1546.3,1546.2,19.40238]
[1673867567789,1.44661464,1546.3,1546.2,19.40238]
[1673867569468,1.44661464,1546.3,1546.2,19.63238]
[1673867570067,2.41176719,1546.3,1546.2,19.63238]
[1673867571525,2.41202783,1546.3,1546.2,19.63238]
[1673867571732,2.41204672,1546.3,1546.2,19.63238]
[1673867572056,2.41205408,1546.3,1546.2,19.63238]
[1673867572268,2.41205022,1546.3,1546.2,19.63238]
[1673867572505,2.41204828,1546.3,1546.2,19.63238]
[1673867572700,1.44661464,1546.3,1546.2,19.63238]
[1673867573878,3.37540335,1546.3,1546.2,19.63238]
[1673867574657,1.44661464,1546.3,1546.2,19.63238]
[1673867574968,3.37540335,1546.3,1546.2,19.63238]
[1673867576194,3.37540335,1546.3,1546.2,21.13338]
[1673867577177,1.92878871,1546.3,1546.2,21.13338]
[1673867577542,4.33968838,1546.3,1546.2,19.63238]
[1673867577960,1.92878871,1546.3,1546.2,19.63238]
[1673867578171,2.41089967,1546.3,1546.2,19.40238]
[1673867578376,2.8930796,1546.3,1546.2,19.40238]
[1673867580290,2.41089967,1546.3,1546.2,19.40238]
[1673867582121,2.41089967,1546.3,1546.2,19.39870347]
[1673867585538,2.88429831,1546.4,1546.2,19.39870347]
[1673867586053,2.4138471,1546.3,1546.2,19.39870347]
[1673867586298,3.379599,1546.3,1546.2,19.39870347]
[1673867586487,2.41409107,1546.3,1546.2,22.36433982]
[1673867586705,2.41408681,1546.3,1546.2,23.85833982]
[1673867587526,0.96566164,1546.3,1546.2,28.6271266]
[1673867587745,2.41408681,1546.4,1546.3,2.5]
[1673867588002,2.41408681,1546.4,1546.3,23.63215]
[1673867588152,2.41408681,1546.4,1546.3,27.41518566]
[1673867588831,0.96566164,1546.4,1546.3,27.41518566]
[1673867594954,0.96566164,1546.4,1546.3,6.46705]
[1673867595142,1.93117383,1546.4,1546.3,12.9341]
[1673867595490,4.34502093,1546.4,1546.3,12.9341]
[1673867596025,4.34502093,1546.4,1546.2,12.93436]
[1673867596194,1.44716971,1546.3,1546.2,12.93436]
[1673867596400,3.37834354,1546.3,1546.2,12.93436]
[1673867596853,1.44716971,1546.3,1546.2,12.93436]
[1673867597549,1.44716971,1546.3,1546.2,12.88436]
[1673867598547,1.44716971,1546.3,1546.2,19.35182]
[1673867599660,3.37834354,1546.3,1546.2,19.35182]
[1673867602862,1.93117383,1546.3,1546.2,19.35182]
[1673867603045,1.93117383,1546.3,1546.2,19.30182]
[1673867603387,2.84834919,1546.3,1546.2,6.36714]
[1673867603742,4.77730226,1546.3,1546.2,6.36714]
[1673867604216,2.84834919,1546.3,1546.2,6.36714]
[1673867606995,4.77701578,1546.3,1546.2,6.36714]
[1673867607653,2.84834919,1546.3,1546.2,6.36714]
[1673867608720,2.84834919,1546.3,1546.2,6.31714]
[1673867613551,4.77647126,1546.3,1546.2,6.31714]
[1673867613785,2.84834919,1546.3,1546.2,6.31714]
[1673867613958,4.34213384,1546.3,1546.2,6.31714]
[1673867614166,1.92828674,1546.3,1546.2,19.25206]
[1673867615116,3.37479899,1546.3,1546.2,19.25206]
[1673867616359,1.44651225,1546.3,1546.2,19.25206]
[1673867616631,3.37479899,1546.3,1546.2,19.25206]
[1673867616842,3.37479899,1546.3,1546.2,23.707349]
[1673867616843,0.96441273,1546.3,1546.2,23.707349]
[1673867621627,2.41092498,1546.4,1546.2,28.47313578]
[1673867621882,0.96441273,1546.4,1546.3,23.23015]
[1673867622292,2.41092498,1546.4,1546.3,23.23015]
[1673867622687,1.44651225,1546.4,1546.3,23.23015]
[1673867622887,1.44651225,1546.4,1546.3,22.18815]
[1673867623095,1.44651225,1546.4,1546.3,20.68715]
[1673867624886,3.37479899,1546.4,1546.3,20.68715]
[1673867625570,3.37510229,1546.4,1546.3,20.68715]
[1673867627578,2.41133503,1546.4,1546.3,22.18215]
[1673867627768,2.41133503,1546.4,1546.3,25.032079]
[1673867629686,0.96451948,1546.4,1546.3,25.032079]
[1673867631623,0.96451948,1546.4,1546.3,28.30486578]
[1673867635199,0.96451948,1546.5,1546.3,31.30486578]
[1673867635405,1.50031237,1546.6,1546.4,3.26957751]
[1673867635406,1.0180163,1546.6,1546.4,3.26957751]
[1673867635654,1.0180163,1546.6,1546.5,32.68658453]
[1673867635879,1.0180163,1546.6,1546.5,29.41379775]
[1673867636207,2.46483185,1546.6,1546.5,27.35384]
[1673867636818,1.0180163,1546.6,1546.5,27.35384]
[1673867637142,1.0180163,1546.6,1546.5,1.489]
[1673867637367,1.0180163,1546.6,1546.5,27.35384]
[1673867643099,0.05349682,1546.6,1546.5,27.35384]
[1673867643313,0.06101651,1546.8,1546.6,2.5]
[1673867643573,0.06101651,1546.8,1546.7,30.85626678]
[1673867645743,0.06101651,1546.8,1546.7,37.64326678]
[1673867645958,0.06101651,1546.8,1546.7,39.14026678]
[1673867646179,0.06101651,1546.8,1546.7,43.14199346]
[1673867649132,0.06101651,1546.8,1546.7,36.35499346]
[1673867649472,0.06101651,1546.8,1546.7,32.85220668]
[1673867649691,0.06101651,1546.8,1546.7,27.35848]
[1673867649822,1.02553599,1546.8,1546.7,19.39611]
[1673867650032,2.47235154,1546.8,1546.7,19.39611]
[1673867650303,1.02553599,1546.8,1546.7,19.39611]
[1673867650661,2.47235154,1546.8,1546.7,19.39611]
[1673867651256,1.02553599,1546.8,1546.7,19.39611]
[1673867653324,2.47235154,1546.8,1546.7,19.39611]
[1673867654549,1.50783206,1546.8,1546.7,19.39611]
[1673867656861,3.4361188,1546.8,1546.7,19.39611]
[1673867657486,3.4361188,1546.8,1546.7,6.46537]
[1673867657487,2.57964952,1546.8,1546.7,6.46537]
[1673867657754,4.99349662,1546.8,1546.6,6.46572]
[1673867657965,1.44543826,1546.7,1546.6,12.93144]
[1673867658972,1.44543826,1546.7,1546.6,20.89823]
[1673867658973,0.96366587,1546.7,1546.6,20.89823]
[1673867660379,0.96366587,1546.7,1546.6,23.634643]
[1673867664041,0.96366587,1546.7,1546.6,23.63118335]
[1673867665962,0.96366587,1546.7,1546.6,26.90397013]
[1673867666176,0.96366587,1546.7,1546.6,27.13397013]
[1673867669839,2.40910413,1546.7,1546.6,27.13397013]
[1673867670025,0.96366587,1546.7,1546.6,27.13397013]
[1673867672478,2.40910413,1546.7,1546.6,27.13397013]
[1673867673001,1.44543826,1546.7,1546.6,27.13397013]
[1673867673881,1.44543826,1546.7,1546.6,23.86118335]
[1673867674073,3.373725,1546.7,1546.6,20.89477035]
[1673867674787,1.92828674,1546.7,1546.6,20.89477035]
[1673867675446,4.34213384,1546.7,1546.6,20.89477035]
[1673867676030,4.34213384,1546.7,1546.6,19.39377035]
[1673867677185,2.4138471,1546.7,1546.6,19.39377035]
[1673867678065,4.34440304,1546.7,1546.6,19.39377035]
[1673867678254,1.44805972,1546.7,1546.6,19.39377035]